fUST/lending_fUST_20250221
["ID","MTS","AMOUNT","RATE_DAILY","PERIOD"]
[353824372,1740079849038,-500.0,0.00013945,2]
[353824373,1740079849048,-500.0,0.00013945,2]
[353824374,1740079849057,-500.0,0.00013945,2]
[353824375,1740079849067,-1627.86,0.00013945,2]
[353824376,1740079849077,-500.0,0.00013945,2]
[353824377,1740079849087,-500.0,0.00013945,2]
[353824378,1740079849096,-7609.22,0.00013945,2]
[353824379,1740079849106,-511.83,0.00013945,2]
[353824380,1740079849116,-500.0,0.00013945,2]
[353824381,1740079849126,-2489.31,0.00013945,2]
[353824382,1740079849136,-500.0,0.00013945,2]
[353824383,1740079849146,-1723.42,0.00013945,2]
[353824384,1740079849156,-160.0,0.00013978,4]
[353824385,1740079849166,-1000.0,0.00014,14]
[353824386,1740079849178,-500.0,0.00014027,2]
[353824387,1740079849187,-500.0,0.00014027,2]
[353824388,1740079849197,-500.0,0.00014027,2]
[353824389,1740079849206,-500.0,0.00014027,2]
[353824390,1740079849216,-500.0,0.00014027,2]
[353824391,1740079849226,-500.0,0.00014027,2]
[353824392,1740079849236,-500.0,0.00014027,2]
[353824393,1740079849245,-500.0,0.00014027,2]
[353824394,1740079849254,-1132.64,0.00014027,2]
[353824395,1740079849264,-500.0,0.00014027,2]
[353824396,1740079849274,-500.0,0.00014027,2]
[353824397,1740079849284,-524.07,0.00014027,2]
[353824398,1740079849293,-535.82,0.00014027,2]
[353824399,1740079849303,-500.0,0.00014027,2]
[353824400,1740079849313,-500.0,0.00014027,2]
[353824401,1740079849323,-675.29,0.00014027,2]
[353824402,1740079849333,-500.0,0.00014027,2]
[353824403,1740079849342,-500.0,0.00014027,2]
[353824404,1740079849352,-500.0,0.00014027,2]
[353824405,1740079849362,-500.0,0.00014027,2]
[353824406,1740079849371,-500.0,0.00014027,2]
[353824407,1740079849381,-500.0,0.00014027,2]
[353824408,1740079849391,-741.38,0.00014027,2]
[353824409,1740079849400,-500.0,0.00014027,2]
[353824410,1740079849410,-500.0,0.00014027,2]
[353824411,1740079849421,-500.0,0.00014027,2]
[353824412,1740079849430,-307.51127372,0.00014027,2]
[353824413,1740079849447,-500.0,0.00014027,2]
[353824414,1740079849457,-500.0,0.00014027,2]
[353824415,1740079849467,-500.0,0.00014027,2]
[353824416,1740079849476,-523.27,0.00014027,2]
[353824417,1740079849486,-500.0,0.00014027,2]
[353824418,1740079849495,-500.0,0.00014027,2]
[353824419,1740079849504,-500.0,0.00014027,2]
[353824420,1740079849514,-500.0,0.00014027,2]
[353824421,1740079849523,-993.04,0.00014027,2]
[353824422,1740079849533,-155.44690647,0.00014027,2]
[353824423,1740079849543,-500.0,0.00014027,2]
[353824424,1740079849552,-500.0,0.00014027,2]
[353824425,1740079849562,-500.0,0.00014027,2]
[353824426,1740079849571,-500.0,0.00014027,2]
[353824427,1740079849581,-500.0,0.00014027,2]
[353824428,1740079849591,-822.92,0.00014027,2]
[353824429,1740079849600,-500.0,0.00014027,2]
[353824430,1740079849611,-500.0,0.00014027,2]
[353824431,1740079849620,-621.52,0.00014027,2]
[353824432,1740079849630,-500.0,0.00014027,2]
[353824433,1740079849640,-500.0,0.00014027,2]
[353824434,1740079849649,-500.0,0.00014027,2]
[353824435,1740079849658,-500.0,0.00014027,2]
[353824436,1740079849668,-500.0,0.00014027,2]
[353824437,1740079849679,-516.78,0.00014027,2]
[353824438,1740079849688,-500.0,0.00014027,2]
[353824439,1740079849698,-500.0,0.00014027,2]
[353824440,1740079849708,-631.0206765,0.00014027,2]
[353824441,1740079849718,-500.0,0.00014027,2]
[353824442,1740079849728,-500.0,0.00014027,2]
[353824443,1740079849737,-500.0,0.00014027,2]
[353824444,1740079849747,-500.0,0.00014027,2]
[353824445,1740079849757,-500.0,0.00014027,2]
[353824446,1740079849767,-500.0,0.00014027,2]
[353824447,1740079849776,-500.0,0.00014027,2]
[353824448,1740079849786,-500.0,0.00014027,2]
[353824449,1740079849795,-547.01087436,0.00014027,2]
[353824450,1740079849804,-500.0,0.00014027,2]
[353824451,1740079849814,-500.0,0.00014027,2]
[353824452,1740079849823,-527.72618606,0.00014027,2]
[353824453,1740079849832,-500.0,0.00014027,2]
[353824454,1740079849843,-11864.09,0.00014027,2]
[353824455,1740079849857,-1103.34,0.00014027,2]
[353824456,1740079849867,-605.35,0.00014027,2]
[353824457,1740079849877,-500.0,0.00014027,2]
[353824458,1740079849887,-508.69,0.00014027,2]
[353824459,1740079849897,-500.0,0.00014027,2]
[353824460,1740079849906,-839.22,0.00014027,2]
[353824461,1740079849916,-445.62761201,0.00014027,2]
[353824462,1740079849929,-500.0,0.00014027,2]
[353824463,1740079849939,-2399.21,0.00014027,2]
[353824464,1740079849948,-694.02,0.00014027,2]
[353824465,1740079849958,-500.0,0.00014027,2]
[353824466,1740079849968,-856.0,0.00014027,2]
[353824467,1740079849978,-895.06,0.00014027,2]
[353824468,1740079849987,-2339.93,0.00014027,2]
[353824469,1740079849996,-31663.31,0.00014027,2]
[353824470,1740079850006,-5188.34,0.00014027,2]
[353824471,1740079850016,-1829.97,0.00014027,2]
[353824472,1740079850025,-985.97,0.00014027,2]
[353824473,1740079850035,-500.0,0.00014027,2]
[353824474,1740079850045,-500.0,0.00014027,2]
[353824475,1740079850054,-500.0,0.00014027,2]
[353824476,1740079850063,-3242.16,0.00014027,2]
[353824477,1740079850072,-500.0,0.00014027,2]
[353824478,1740079850082,-500.0,0.00014027,2]
[353824479,1740079850091,-500.0,0.00014027,2]
[353824480,1740079850101,-500.0,0.00014027,2]
[353824481,1740079850110,-1739.17,0.00014027,2]
[353824482,1740079850120,-500.0,0.00014027,2]
[353824483,1740079850130,-849.74,0.00014027,2]
[353824484,1740079850139,-2794.7,0.00014027,2]
[353824485,1740079850149,-1344.85,0.00014027,2]
[353824486,1740079850159,-500.0,0.00014027,2]
[353824487,1740079850168,-500.0,0.00014027,2]
[353824488,1740079850178,-500.0,0.00014027,2]
[353824489,1740079850187,-601.25,0.00014027,2]
[353824490,1740079850197,-500.0,0.00014027,2]
[353824491,1740079850207,-500.0,0.00014027,2]
[353824492,1740079850217,-500.0,0.00014027,2]
[353824493,1740079850227,-1089.45,0.00014027,2]
[353824494,1740079850237,-500.0,0.00014027,2]
[353824495,1740079850247,-500.0,0.00014027,2]
[353824496,1740079850352,-1296.36,0.00014027,2]
[353824497,1740079850363,-500.0,0.00014027,2]
[353824498,1740079850373,-500.0,0.00014027,2]
[353824499,1740079850383,-1758.73,0.00014027,2]
[353824500,1740079850393,-500.0,0.00014027,2]
[353824501,1740079850404,-500.0,0.00014027,2]
[353824502,1740079850414,-500.0,0.00014027,2]
[353824503,1740079850424,-500.0,0.00014027,2]
[353824504,1740079850434,-631.77,0.00014027,2]
[353824505,1740079850443,-4760.62,0.00014027,2]
[353824506,1740079850453,-1653.51,0.00014027,2]
[353824507,1740079850463,-1136.75,0.00014027,2]
[353824508,1740079850472,-500.0,0.00014027,2]
[353824509,1740079850482,-500.0,0.00014027,2]
[353824510,1740079850492,-500.0,0.00014027,2]
[353824511,1740079850502,-536.89,0.00014027,2]
[353824512,1740079850511,-1454.32,0.00014027,2]
[353824513,1740079850521,-11736.37,0.00014027,2]
[353824514,1740079850531,-500.0,0.00014027,2]
[353824515,1740079850541,-500.0,0.00014027,2]
[353824516,1740079850550,-500.0,0.00014027,2]
[353824517,1740079850559,-500.0,0.00014027,2]
[353824518,1740079850569,-500.0,0.00014027,2]
[353824519,1740079850579,-500.0,0.00014027,2]
[353824520,1740079850588,-1627.86,0.00014027,2]
[353824521,1740079850598,-500.0,0.00014027,2]
[353824522,1740079850607,-500.0,0.00014027,2]
[353824523,1740079850617,-7609.22,0.00014027,2]
[353824524,1740079850627,-511.83,0.00014027,2]
[353824525,1740079850636,-500.0,0.00014027,2]
[353824526,1740079850646,-2489.31,0.00014027,2]
[353824527,1740079850655,-500.0,0.00014027,2]
[353824528,1740079850665,-1723.42,0.00014027,2]
[353824529,1740079850676,-399.56140855,0.00014091,2]
[353824530,1740079850687,-399.56140855,0.00014091,2]
[353824531,1740079850696,-399.56140855,0.00014091,2]
[353824532,1740079850706,-399.56140855,0.00014091,2]
[353824533,1740079850716,-399.56140855,0.00014091,2]
[353824534,1740079850725,-399.56140855,0.00014091,2]
[353824535,1740079850735,-399.56140855,0.00014091,2]
[353824536,1740079850744,-399.56140855,0.00014091,2]
[353824537,1740079850754,-399.56140855,0.00014091,2]
[353824538,1740079850764,-399.56140855,0.00014091,2]
[353824539,1740079850773,-399.56140855,0.00014091,2]
[353824540,1740079850783,-399.56140855,0.00014091,2]
[353824541,1740079850792,-399.56140855,0.00014091,2]
[353824542,1740079850802,-399.56140855,0.00014091,2]
[353824543,1740079850811,-399.56140855,0.00014091,2]
[353824544,1740079850820,-399.56140855,0.00014091,2]
[353824545,1740079850830,-399.56140855,0.00014091,2]
[353824546,1740079850839,-399.56140855,0.00014091,2]
[353824547,1740079850849,-399.56140855,0.00014091,2]
[353824548,1740079850861,-399.56,0.00014091,2]
[353824549,1740079850871,-183.82870761,0.00014091,2]
[353824550,1740079850880,-500.0,0.00014109,2]
[353824551,1740079850890,-310.33331655,0.00014109,2]
[353824552,1740079850900,-188.30426012,0.00014109,2]
[353824553,1740079850910,-500.0,0.00014109,2]
[353824554,1740079850920,-496.55983966,0.00014109,2]
[353824555,1740079850931,-500.0,0.00014109,2]
[353824556,1740079850941,-500.0,0.00014109,2]
[353824557,1740079850951,-1132.64,0.00014109,2]
[353824558,1740079850960,-500.0,0.00014109,2]
[353824559,1740079850969,-500.0,0.00014109,2]
[353824560,1740079850979,-524.07,0.00014109,2]
[353824561,1740079850989,-535.82,0.00014109,2]
[353824562,1740079850998,-500.0,0.00014109,2]
[353824563,1740079851008,-500.0,0.00014109,2]
[353824564,1740079851017,-675.29,0.00014109,2]
[353824565,1740079851027,-500.0,0.00014109,2]
[353824566,1740079851036,-500.0,0.00014109,2]
[353824567,1740079851047,-500.0,0.00014109,2]
[353824568,1740079851057,-542.08,0.00014109,2]
[353824569,1740079851066,-500.0,0.00014109,2]
[353824570,1740079851076,-741.38,0.00014109,2]
[353824571,1740079851086,-500.0,0.00014109,2]
[353824572,1740079851096,-483.0699101,0.00014109,2]
[353824573,1740079851105,-500.0,0.00014109,2]
[353824574,1740079851114,-500.0,0.00014109,2]
[353824575,1740079851124,-500.0,0.00014109,2]
[353824576,1740079851134,-500.0,0.00014109,2]
[353824577,1740079851144,-523.27,0.00014109,2]
[353824578,1740079851153,-500.0,0.00014109,2]
[353824579,1740079851163,-500.0,0.00014109,2]
[353824580,1740079851173,-500.0,0.00014109,2]
[353824581,1740079851182,-500.0,0.00014109,2]
[353824582,1740079851191,-993.04,0.00014109,2]
[353824583,1740079851201,-500.0,0.00014109,2]
[353824584,1740079851210,-500.0,0.00014109,2]
[353824585,1740079851220,-500.0,0.00014109,2]
[353824586,1740079851229,-500.0,0.00014109,2]
[353824587,1740079851239,-500.0,0.00014109,2]
[353824588,1740079851247,-822.92,0.00014109,2]
[353824589,1740079851256,-500.0,0.00014109,2]
[353824590,1740079851265,-500.0,0.00014109,2]
[353824591,1740079851275,-621.52,0.00014109,2]
[353824592,1740079851284,-323.26680053,0.00014109,2]
[353824593,1740079851294,-500.0,0.00014109,2]
[353824594,1740079851303,-500.0,0.00014109,2]
[353824595,1740079851313,-452.48461225,0.00014109,2]
[353824596,1740079851323,-638.61968683,0.00014109,2]
[353824597,1740079851333,-516.78,0.00014109,2]
[353824598,1740079851343,-500.0,0.00014109,2]
[353824599,1740079851352,-500.0,0.00014109,2]
[353824600,1740079851362,-500.0,0.00014109,2]
[353824601,1740079851372,-371.04980612,0.00014109,2]
[353824602,1740079851382,-500.0,0.00014109,2]
[353824603,1740079851392,-500.0,0.00014109,2]
[353824604,1740079851401,-500.0,0.00014109,2]
[353824605,1740079851411,-500.0,0.00014109,2]
[353824606,1740079851423,-500.0,0.00014109,2]
[353824607,1740079851432,-500.0,0.00014109,2]
[353824608,1740079851441,-500.0,0.00014109,2]
[353824609,1740079851451,-500.0,0.00014109,2]
[353824610,1740079851460,-500.0,0.00014109,2]
[353824611,1740079851470,-11864.09,0.00014109,2]
[353824612,1740079851479,-1103.34,0.00014109,2]
[353824613,1740079851489,-605.35,0.00014109,2]
[353824614,1740079851499,-500.0,0.00014109,2]
[353824615,1740079851509,-508.69,0.00014109,2]
[353824616,1740079851519,-500.0,0.00014109,2]
[353824617,1740079851528,-839.22,0.00014109,2]
[353824618,1740079851538,-500.0,0.00014109,2]
[353824619,1740079851547,-2399.21,0.00014109,2]
[353824620,1740079851556,-694.02,0.00014109,2]
[353824621,1740079851566,-500.0,0.00014109,2]
[353824622,1740079851575,-856.0,0.00014109,2]
[353824623,1740079851584,-895.06,0.00014109,2]
[353824624,1740079851593,-2339.93,0.00014109,2]
[353824625,1740079851603,-31663.31,0.00014109,2]
[353824626,1740079851612,-5188.34,0.00014109,2]
[353824627,1740079851621,-1829.97,0.00014109,2]
[353824628,1740079851630,-985.97,0.00014109,2]
[353824629,1740079851640,-500.0,0.00014109,2]
[353824630,1740079851649,-278.9838097,0.00014109,2]
[353824631,1740079851658,-500.0,0.00014109,2]
[353824632,1740079851667,-3242.16,0.00014109,2]
[353824633,1740079851676,-500.0,0.00014109,2]
[353824634,1740079851685,-500.0,0.00014109,2]
[353824635,1740079851695,-500.0,0.00014109,2]
[353824636,1740079851704,-500.0,0.00014109,2]
[353824637,1740079851713,-1739.17,0.00014109,2]
[353824638,1740079851722,-500.0,0.00014109,2]
[353824639,1740079851731,-849.74,0.00014109,2]
[353824640,1740079851739,-2794.7,0.00014109,2]
[353824641,1740079851747,-500.0,0.00014109,2]
[353824642,1740079851755,-1344.85,0.00014109,2]
[353824643,1740079851763,-500.0,0.00014109,2]
[353824644,1740079851771,-501.01678089,0.00014109,2]
[353824645,1740079851778,-601.25,0.00014109,2]
[353824646,1740079851787,-500.0,0.00014109,2]
[353824647,1740079851796,-500.0,0.00014109,2]
[353824648,1740079851805,-1089.45,0.00014109,2]
[353824649,1740079851814,-500.0,0.00014109,2]
[353824650,1740079851823,-500.0,0.00014109,2]
[353824651,1740079851832,-1296.36,0.00014109,2]
[353824652,1740079851842,-500.0,0.00014109,2]
[353824653,1740079851856,-500.0,0.00014109,2]
[353824654,1740079851866,-1758.73,0.00014109,2]
[353824655,1740079851875,-500.0,0.00014109,2]
[353824656,1740079851887,-500.0,0.00014109,2]
[353824657,1740079851896,-500.0,0.00014109,2]
[353824658,1740079851905,-500.0,0.00014109,2]
[353824659,1740079851915,-631.77,0.00014109,2]
[353824660,1740079851926,-4760.62,0.00014109,2]
[353824661,1740079851935,-1653.51,0.00014109,2]
[353824662,1740079851944,-1136.75,0.00014109,2]
[353824663,1740079851954,-500.0,0.00014109,2]
[353824664,1740079851963,-500.0,0.00014109,2]
[353824665,1740079851972,-500.0,0.00014109,2]
[353824666,1740079851981,-536.89,0.00014109,2]
[353824667,1740079851991,-1454.32,0.00014109,2]
[353824668,1740079851999,-11736.37,0.00014109,2]
[353824669,1740079852009,-472.62235027,0.00014109,2]
[353824670,1740079852018,-500.0,0.00014109,2]
[353824671,1740079852027,-500.0,0.00014109,2]
[353824672,1740079852036,-500.0,0.00014109,2]
[353824673,1740079852045,-500.0,0.00014109,2]
[353824674,1740079852054,-500.0,0.00014109,2]
[353824675,1740079852063,-1627.86,0.00014109,2]
[353824676,1740079852073,-337.822169,0.00014109,2]
[353824677,1740079852082,-500.0,0.00014109,2]
[353824678,1740079852091,-7609.22,0.00014109,2]
[353824679,1740079852100,-511.83,0.00014109,2]
[353824680,1740079852109,-500.0,0.00014109,2]
[353824681,1740079852118,-2489.31,0.00014109,2]
[353824682,1740079852126,-500.0,0.00014109,2]
[353824683,1740079852136,-1723.42,0.00014109,2]
[353824684,1740079852145,-1020.454338,0.00014123,2]
[353824685,1740079852154,-600.0,0.00014164,2]
[353824686,1740079852163,-500.0,0.00014173,2]
[353824687,1740079852172,-500.0,0.00014173,2]
[353824688,1740079852181,-500.0,0.00014173,2]
[353824689,1740079852189,-500.0,0.00014191,2]
[353824690,1740079852199,-500.0,0.00014191,2]
[353824691,1740079852208,-500.0,0.00014191,2]
[353824692,1740079852302,-242.45975678,0.00014191,2]
[353824693,1740079852311,-1132.64,0.00014191,2]
[353824694,1740079852320,-500.0,0.00014191,2]
[353824695,1740079852329,-500.0,0.00014191,2]
[353824696,1740079852339,-524.07,0.00014191,2]
[353824697,1740079852348,-535.82,0.00014191,2]
[353824698,1740079852358,-675.29,0.00014191,2]
[353824699,1740079852367,-500.0,0.00014191,2]
[353824700,1740079852376,-500.0,0.00014191,2]
[353824701,1740079852385,-500.0,0.00014191,2]
[353824702,1740079852394,-500.0,0.00014191,2]
[353824703,1740079852403,-741.38,0.00014191,2]
[353824704,1740079852412,-500.0,0.00014191,2]
[353824705,1740079852422,-500.0,0.00014191,2]
[353824706,1740079852432,-500.0,0.00014191,2]
[353824707,1740079852441,-500.0,0.00014191,2]
[353824708,1740079852451,-523.27,0.00014191,2]
[353824709,1740079852460,-500.0,0.00014191,2]
[353824710,1740079852469,-500.0,0.00014191,2]
[353824711,1740079852478,-500.0,0.00014191,2]
[353824712,1740079852487,-500.0,0.00014191,2]
[353824713,1740079852496,-993.04,0.00014191,2]
[353824714,1740079852505,-500.0,0.00014191,2]
[353824715,1740079852514,-500.0,0.00014191,2]
[353824716,1740079852523,-500.0,0.00014191,2]
[353824717,1740079852534,-500.0,0.00014191,2]
[353824718,1740079852543,-153.85974818,0.00014191,2]
[353824719,1740079852553,-822.92,0.00014191,2]
[353824720,1740079852562,-500.0,0.00014191,2]
[353824721,1740079852571,-500.0,0.00014191,2]
[353824722,1740079852580,-621.52,0.00014191,2]
[353824723,1740079852589,-500.0,0.00014191,2]
[353824724,1740079852599,-500.0,0.00014191,2]
[353824725,1740079852608,-516.78,0.00014191,2]
[353824726,1740079852618,-500.0,0.00014191,2]
[353824727,1740079852627,-500.0,0.00014191,2]
[353824728,1740079852637,-500.0,0.00014191,2]
[353824729,1740079852646,-500.0,0.00014191,2]
[353824730,1740079852655,-500.0,0.00014191,2]
[353824731,1740079852664,-500.0,0.00014191,2]
[353824732,1740079852674,-500.0,0.00014191,2]
[353824733,1740079852683,-500.0,0.00014191,2]
[353824734,1740079852692,-500.0,0.00014191,2]
[353824735,1740079852702,-500.0,0.00014191,2]
[353824736,1740079852711,-500.0,0.00014191,2]
[353824737,1740079852720,-500.0,0.00014191,2]
[353824738,1740079852730,-11864.09,0.00014191,2]
[353824739,1740079852739,-1103.34,0.00014191,2]
[353824740,1740079852748,-605.35,0.00014191,2]
[353824741,1740079852758,-500.0,0.00014191,2]
[353824742,1740079852767,-508.69,0.00014191,2]
[353824743,1740079852777,-500.0,0.00014191,2]
[353824744,1740079852786,-839.22,0.00014191,2]
[353824745,1740079852795,-500.0,0.00014191,2]
[353824746,1740079852804,-2399.21,0.00014191,2]
[353824747,1740079852813,-694.02,0.00014191,2]
[353824748,1740079852822,-500.0,0.00014191,2]
[353824749,1740079852832,-856.0,0.00014191,2]
[353824750,1740079852842,-895.06,0.00014191,2]
[353824751,1740079852852,-2339.93,0.00014191,2]
[353824752,1740079852862,-31663.31,0.00014191,2]
[353824753,1740079852872,-5188.34,0.00014191,2]
[353824754,1740079852881,-1829.97,0.00014191,2]
[353824755,1740079852892,-985.97,0.00014191,2]
[353824756,1740079852902,-500.0,0.00014191,2]
[353824757,1740079852911,-500.0,0.00014191,2]
[353824758,1740079852920,-3242.16,0.00014191,2]
[353824759,1740079852931,-500.0,0.00014191,2]
[353824760,1740079852941,-500.0,0.00014191,2]
[353824761,1740079852950,-497.4229373,0.00014191,2]
[353824762,1740079852960,-500.0,0.00014191,2]
[353824763,1740079852969,-1739.17,0.00014191,2]
[353824764,1740079852979,-500.0,0.00014191,2]
[353824765,1740079852988,-849.74,0.00014191,2]
[353824766,1740079852998,-2794.7,0.00014191,2]
[353824767,1740079853018,-1344.85,0.00014191,2]
[353824768,1740079853028,-500.0,0.00014191,2]
[353824769,1740079853038,-502.48918186,0.00014191,2]
[353824770,1740079853049,-601.25,0.00014191,2]
[353824771,1740079853059,-500.0,0.00014191,2]
[353824772,1740079853068,-500.0,0.00014191,2]
[353824773,1740079853078,-1089.45,0.00014191,2]
[353824774,1740079853088,-500.0,0.00014191,2]
[353824775,1740079853098,-500.0,0.00014191,2]
[353824776,1740079853107,-1296.36,0.00014191,2]
[353824777,1740079853117,-500.0,0.00014191,2]
[353824778,1740079853127,-378.45,0.00014191,2]
[353824779,1740079853137,-1758.73,0.00014191,2]
[353824780,1740079853147,-500.0,0.00014191,2]
[353824781,1740079853157,-500.0,0.00014191,2]
[353824782,1740079853167,-525.13,0.00014191,2]
[353824783,1740079853178,-500.0,0.00014191,2]
[353824784,1740079853187,-631.77,0.00014191,2]
[353824785,1740079853197,-4760.62,0.00014191,2]
[353824786,1740079853207,-1653.51,0.00014191,2]
[353824787,1740079853217,-1136.75,0.00014191,2]
[353824788,1740079853227,-321.98,0.00014191,2]
[353824789,1740079853237,-500.0,0.00014191,2]
[353824790,1740079853247,-215.34,0.00014191,2]
[353824791,1740079853256,-536.89,0.00014191,2]
[353824792,1740079853266,-1454.32,0.00014191,2]
[353824793,1740079853275,-11736.37,0.00014191,2]
[353824794,1740079853285,-500.0,0.00014191,2]
[353824795,1740079853294,-500.0,0.00014191,2]
[353824796,1740079853305,-500.0,0.00014191,2]
[353824797,1740079853315,-500.0,0.00014191,2]
[353824798,1740079853325,-1627.86,0.00014191,2]
[353824799,1740079853334,-500.0,0.00014191,2]
[353824800,1740079853344,-7609.22,0.00014191,2]
[353824801,1740079853354,-511.83,0.00014191,2]
[353824802,1740079853363,-500.0,0.00014191,2]
[353824803,1740079853373,-2489.31,0.00014191,2]
[353824804,1740079853382,-500.0,0.00014191,2]
[353824805,1740079853392,-1723.42,0.00014191,2]
[353824806,1740079853401,-2443.33,0.000142,2]
[353824807,1740079853411,-404.52,0.00014273,2]
[353824808,1740079853421,-500.0,0.00014273,2]
[353824809,1740079853430,-1132.64,0.00014273,2]
[353824810,1740079853441,-500.0,0.00014273,2]
[353824811,1740079853450,-500.0,0.00014273,2]
[353824812,1740079853460,-524.07,0.00014273,2]
[353824813,1740079853471,-535.82,0.00014273,2]
[353824814,1740079853480,-675.29,0.00014273,2]
[353824815,1740079853489,-299.16,0.00014273,2]
[353824816,1740079853499,-500.0,0.00014273,2]
[353824817,1740079853509,-500.0,0.00014273,2]
[353824818,1740079853518,-500.0,0.00014273,2]
[353824819,1740079853528,-741.38,0.00014273,2]
[353824820,1740079853538,-500.0,0.00014273,2]
[353824821,1740079853548,-594.82,0.00014273,2]
[353824822,1740079853557,-513.79,0.00014273,2]
[353824823,1740079853567,-500.0,0.00014273,2]
[353824824,1740079853576,-523.27,0.00014273,2]
[353824825,1740079853586,-500.0,0.00014273,2]
[353824826,1740079853595,-500.0,0.00014273,2]
[353824827,1740079853605,-500.0,0.00014273,2]
[353824828,1740079853614,-500.0,0.00014273,2]
[353824829,1740079853623,-993.04,0.00014273,2]
[353824830,1740079853635,-500.0,0.00014273,2]
[353824831,1740079853644,-500.0,0.00014273,2]
[353824832,1740079853653,-500.0,0.00014273,2]
[353824833,1740079853663,-500.0,0.00014273,2]
[353824834,1740079853672,-822.92,0.00014273,2]
[353824835,1740079853681,-500.0,0.00014273,2]
[353824836,1740079853691,-500.0,0.00014273,2]
[353824837,1740079853701,-621.52,0.00014273,2]
[353824838,1740079853710,-500.0,0.00014273,2]
[353824839,1740079853720,-500.0,0.00014273,2]
[353824840,1740079853729,-516.78,0.00014273,2]
[353824841,1740079853739,-500.0,0.00014273,2]
[353824842,1740079853748,-500.0,0.00014273,2]
[353824843,1740079853758,-500.0,0.00014273,2]
[353824844,1740079853768,-493.89,0.00014273,2]
[353824845,1740079853777,-500.0,0.00014273,2]
[353824846,1740079853786,-500.0,0.00014273,2]
[353824847,1740079853795,-500.0,0.00014273,2]
[353824848,1740079853805,-500.0,0.00014273,2]
[353824849,1740079853814,-500.0,0.00014273,2]
[353824850,1740079853824,-500.0,0.00014273,2]
[353824851,1740079853833,-500.0,0.00014273,2]
[353824852,1740079853843,-11864.09,0.00014273,2]
[353824853,1740079853857,-1103.34,0.00014273,2]
[353824854,1740079853867,-605.35,0.00014273,2]
[353824855,1740079853876,-500.0,0.00014273,2]
[353824856,1740079853887,-508.69,0.00014273,2]
[353824857,1740079853896,-500.0,0.00014273,2]
[353824858,1740079853906,-839.22,0.00014273,2]
[353824859,1740079853917,-500.0,0.00014273,2]
[353824860,1740079853928,-2399.21,0.00014273,2]
[353824861,1740079853937,-694.02,0.00014273,2]
[353824862,1740079853947,-500.0,0.00014273,2]
[353824863,1740079853958,-856.0,0.00014273,2]
[353824864,1740079853968,-895.06,0.00014273,2]
[353824865,1740079853977,-2339.93,0.00014273,2]
[353824866,1740079853987,-31663.31,0.00014273,2]
[353824867,1740079853996,-5188.34,0.00014273,2]
[353824868,1740079854006,-1829.97,0.00014273,2]
[353824869,1740079854015,-985.97,0.00014273,2]
[353824870,1740079854025,-500.0,0.00014273,2]
[353824871,1740079854150,-3242.16,0.00014273,2]